fUSD/lending_fUSD_20250623
["ID","MTS","AMOUNT","RATE_DAILY","PERIOD"]
[367128837,1750665054895,-694.47,0.00027397,3]
[367128838,1750665054907,-490.0,0.00027397,3]
[367128839,1750665054920,-492.84977416,0.00027397,3]
[367128840,1750665054931,-571.27,0.00027397,3]
[367128841,1750665054942,-642.38,0.00027397,3]
[367128842,1750665054954,-490.0,0.00027397,3]
[367128843,1750665054967,-490.0,0.00027397,3]
[367128844,1750665054978,-490.0,0.00027397,3]
[367128845,1750665054989,-211.16652219,0.00027397,3]
[367128846,1750665055003,-1226.31,0.00027397,3]
[367128847,1750665055015,-490.0,0.00027397,3]
[367128848,1750665055026,-490.0,0.00027397,3]
[367128849,1750665055037,-490.0,0.00027397,3]
[367128850,1750665055049,-490.0,0.00027397,3]
[367128851,1750665055059,-1123.21,0.00027397,3]
[367128852,1750665055071,-490.0,0.00027397,3]
[367128853,1750665055082,-490.0,0.00027397,3]
[367128854,1750665055093,-487.34965101,0.00027397,3]
[367128855,1750665055104,-490.0,0.00027397,3]
[367128856,1750665055116,-371.71832694,0.00027397,3]
[367128857,1750665055128,-490.0,0.00027397,3]
[367128858,1750665055139,-487.58746529,0.00027397,3]
[367128859,1750665055150,-1133.23,0.00027397,3]
[367128860,1750665055162,-518.3,0.00027397,3]
[367128861,1750665055173,-490.0,0.00027397,3]
[367128862,1750665055184,-490.0,0.00027397,3]
[367128863,1750665055195,-490.0,0.00027397,3]
[367128864,1750665055206,-490.0,0.00027397,3]
[367128865,1750665055218,-491.13037814,0.00027397,3]
[367128866,1750665055229,-492.57937457,0.00027397,3]
[367128867,1750665055240,-670.7,0.00027397,3]
[367128868,1750665055251,-490.0,0.00027397,3]
[367128869,1750665055263,-490.0,0.00027397,3]
[367128870,1750665055274,-490.0,0.00027397,3]
[367128871,1750665055286,-490.0,0.00027397,3]
[367128872,1750665055297,-490.0,0.00027397,3]
[367128873,1750665055309,-490.0,0.00027397,3]
[367128874,1750665055320,-490.0,0.00027397,3]
[367128875,1750665055331,-578.64,0.00027397,3]
[367128876,1750665055342,-490.0,0.00027397,3]
[367128877,1750665055353,-993.54,0.00027397,3]
[367128878,1750665055364,-490.0,0.00027397,3]
[367128879,1750665055376,-490.0,0.00027397,3]
[367128880,1750665055388,-492.19068232,0.00027397,3]
[367128881,1750665055400,-490.0,0.00027397,3]
[367128882,1750665055412,-490.0,0.00027397,3]
[367128883,1750665055423,-491.76867525,0.00027397,3]
[367128884,1750665055435,-490.0,0.00027397,3]
[367128885,1750665055447,-490.0,0.00027397,3]
[367128886,1750665055459,-490.0,0.00027397,3]
[367128887,1750665055470,-490.712363,0.00027397,3]
[367128888,1750665055482,-967.76,0.00027397,3]
[367128889,1750665055493,-490.0,0.00027397,3]
[367128890,1750665055504,-490.0,0.00027397,3]
[367128891,1750665055516,-508.66,0.00027397,3]
[367128892,1750665055527,-490.0,0.00027397,3]
[367128893,1750665055538,-3755.94,0.00027397,3]
[367128894,1750665055550,-490.0,0.00027397,3]
[367128895,1750665055561,-582.53,0.00027397,3]
[367128896,1750665055572,-505.58,0.00027397,3]
[367128897,1750665055584,-2144.51,0.00027397,3]
[367128898,1750665055595,-490.0,0.00027397,3]
[367128899,1750665055607,-490.0,0.00027397,3]
[367128900,1750665055618,-490.0,0.00027397,3]
[367128901,1750665055630,-490.0,0.00027397,3]
[367128902,1750665055641,-741.01,0.00027397,3]
[367128903,1750665055652,-490.64439031,0.00027397,3]
[367128904,1750665055664,-490.0,0.00027397,3]
[367128905,1750665055675,-490.0,0.00027397,3]
[367128906,1750665055687,-490.0,0.00027397,3]
[367128907,1750665055699,-490.0,0.00027397,3]
[367128908,1750665055708,-490.0,0.00027397,3]
[367128909,1750665055718,-490.0,0.00027397,3]
[367128910,1750665055728,-490.0,0.00027397,3]
[367128911,1750665055738,-490.0,0.00027397,3]
[367128912,1750665056241,-490.0,0.00027397,3]
[367128913,1750665056269,-301.88,0.00027397,3]
[367128914,1750665056295,-490.0,0.00027397,3]
[367128915,1750665056309,-491.29779249,0.00027397,3]
[367128916,1750665056318,-561.18,0.00027397,3]
[367128917,1750665056328,-490.0,0.00027397,3]
[367128918,1750665056337,-528.73,0.00027397,3]
[367128919,1750665056347,-490.75443556,0.00027397,3]
[367128920,1750665056357,-1111.73,0.00027397,3]
[367128921,1750665056367,-949.02,0.00027397,3]
[367128922,1750665056376,-490.0,0.00027397,3]
[367128923,1750665056386,-4587.21,0.00027397,3]
[367128924,1750665056396,-490.0,0.00027397,3]
[367128925,1750665056406,-490.0,0.00027397,3]
[367128926,1750665056415,-525.95,0.00027397,3]
[367128927,1750665056425,-490.0,0.00027397,3]
[367128928,1750665056435,-490.0,0.00027397,3]
[367128929,1750665056444,-490.0,0.00027397,3]
[367128930,1750665056454,-491.26356971,0.00027397,3]
[367128931,1750665056463,-490.0,0.00027397,3]
[367128932,1750665056473,-621.21,0.00027397,3]
[367128933,1750665056483,-1169.57,0.00027397,3]
[367128934,1750665056492,-490.0,0.00027397,3]
[367128935,1750665056502,-490.0,0.00027397,3]
[367128936,1750665056511,-2316.39,0.00027397,3]
[367128937,1750665056521,-165.43527948,0.00027397,3]
[367128938,1750665056530,-490.0,0.00027397,3]
[367128939,1750665056540,-490.0,0.00027397,3]
[367128940,1750665056549,-490.0,0.00027397,3]
[367128941,1750665056558,-956.96,0.00027397,3]
[367128942,1750665056567,-1387.9,0.00027397,3]
[367128943,1750665056577,-490.66081346,0.00027397,3]
[367128944,1750665056586,-691.28,0.00027397,3]
[367128945,1750665056596,-10717.07,0.00027397,3]
[367128946,1750665056605,-490.0,0.00027397,3]
[367128947,1750665056615,-490.0,0.00027397,3]
[367128948,1750665056625,-917.45,0.00027397,3]
[367128949,1750665056635,-1088.76,0.00027397,3]
[367128950,1750665056647,-595.21,0.00027397,3]
[367128951,1750665056658,-490.0,0.00027397,3]
[367128952,1750665056668,-702.14,0.00027397,3]
[367128953,1750665056678,-490.0,0.00027397,3]
[367128954,1750665056688,-490.0,0.00027397,3]
[367128955,1750665056698,-864.46,0.00027397,3]
[367128956,1750665056707,-4643.17,0.00027397,3]
[367128957,1750665056717,-488.0,0.00027397,3]
[367128958,1750665056727,-1079.72,0.00027397,3]
[367128959,1750665056736,-490.0,0.00027397,3]
[367128960,1750665056746,-490.0,0.00027397,3]
[367128961,1750665056755,-490.0,0.00027397,3]
[367128962,1750665056764,-490.0,0.00027397,3]
[367128963,1750665056774,-817.64,0.00027397,3]
[367128964,1750665056783,-774.97,0.00027397,3]
[367128965,1750665056793,-1077.61,0.00027397,3]
[367128966,1750665056802,-512.41567235,0.00027397,3]
[367128967,1750665056812,-1165.94,0.00027397,3]
[367128968,1750665056822,-490.0,0.00027397,3]
[367128969,1750665056832,-490.0,0.00027397,3]
[367128970,1750665056841,-339.5186584,0.00027397,3]
[367128971,1750665056851,-4614.84,0.00027397,3]
[367128972,1750665056860,-490.0,0.00027397,3]
[367128973,1750665056870,-492.2140073,0.00027397,3]
[367128974,1750665056879,-286.05697193,0.00027397,3]
[367128975,1750665056889,-490.0,0.00027397,3]
[367128976,1750665056898,-490.0,0.00027397,3]
[367128977,1750665056908,-490.0,0.00027397,2]
[367128978,1750665056920,-490.0,0.00027397,3]
[367128979,1750665056931,-507.6406775,0.00027397,3]
[367128980,1750665056940,-637.96608693,0.00027397,3]
[367128981,1750665056949,-2049.2,0.00027397,3]
[367128982,1750665056960,-652.3,0.00027397,3]
[367128983,1750665056970,-809.74,0.00027397,3]
[367128984,1750665056979,-490.0,0.00027397,3]
[367128985,1750665056990,-490.0,0.00027397,3]
[367128986,1750665056999,-1363.03,0.00027397,3]
[367128987,1750665057009,-490.0,0.00027397,3]
[367128988,1750665057019,-553.84,0.00027397,3]
[367128989,1750665057028,-508.05,0.00027397,3]
[367128990,1750665057038,-490.0,0.00027397,3]
[367128991,1750665057047,-1489.9,0.00027397,3]
[367128992,1750665057056,-490.0,0.00027397,3]
[367128993,1750665057065,-490.0,0.00027397,3]
[367128994,1750665057075,-490.0,0.00027397,3]
[367128995,1750665057085,-500.0,0.00027397,3]
[367128996,1750665057094,-490.0,0.00027397,3]
[367128997,1750665057103,-172.48899038,0.00027397,3]
[367128998,1750665057112,-1009.65,0.00027397,3]
[367128999,1750665057123,-1190.7,0.00027397,3]
[367129000,1750665057132,-490.0,0.00027397,3]
[367129001,1750665057142,-1200.07,0.00027397,3]
[367129002,1750665057151,-1280.57,0.00027397,3]
[367129003,1750665057160,-490.0,0.00027397,3]
[367129004,1750665057169,-490.0,0.00027397,3]
[367129005,1750665057178,-515.45721699,0.00027397,3]
[367129006,1750665057187,-490.0,0.00027397,3]
[367129007,1750665057197,-490.0,0.00027397,3]
[367129008,1750665057207,-490.0,0.00027397,3]
[367129009,1750665057216,-490.0,0.00027397,3]
[367129010,1750665057226,-490.0,0.00027397,3]
[367129011,1750665057235,-1170.78,0.00027397,3]
[367129012,1750665057245,-490.0,0.00027397,3]
[367129013,1750665057255,-490.0,0.00027397,3]
[367129014,1750665057264,-490.0,0.00027397,3]
[367129015,1750665057274,-490.0,0.00027397,3]
[367129016,1750665057283,-490.0,0.00027397,3]
[367129017,1750665057292,-490.0,0.00027397,3]
[367129018,1750665057301,-490.0,0.00027397,3]
[367129019,1750665057311,-956.44,0.00027397,3]
[367129020,1750665057321,-490.0,0.00027397,3]
[367129021,1750665057330,-572.0,0.00027397,3]
[367129022,1750665057340,-490.0,0.00027397,3]
[367129023,1750665057350,-747.63,0.00027397,3]
[367129024,1750665057359,-490.0,0.00027397,3]
[367129025,1750665057368,-491.46645898,0.00027397,3]
[367129026,1750665057377,-869.62,0.00027397,3]
[367129027,1750665057386,-490.0,0.00027397,3]
[367129028,1750665057396,-1423.29,0.00027397,3]
[367129029,1750665057406,-490.0,0.00027397,3]
[367129030,1750665057415,-507.52810228,0.00027397,3]
[367129031,1750665057425,-992.64,0.00027397,3]
[367129032,1750665057435,-539.83,0.00027397,3]
[367129033,1750665057444,-490.0,0.00027397,3]
[367129034,1750665057454,-3180.4,0.00027397,3]
[367129035,1750665057463,-490.0,0.00027397,3]
[367129036,1750665057473,-490.0,0.00027397,3]
[367129037,1750665057482,-174.91247071,0.00027397,3]
[367129038,1750665057491,-490.0,0.00027397,3]
[367129039,1750665057501,-490.0,0.00027397,3]
[367129040,1750665057510,-1140.49,0.00027397,3]
[367129041,1750665057519,-500.0,0.00027397,3]
[367129042,1750665057528,-500.0,0.00027397,3]
[367129043,1750665057538,-500.0,0.00027397,3]
[367129044,1750665057548,-490.0,0.00027397,3]
[367129045,1750665057557,-500.0,0.00027397,3]
[367129046,1750665057567,-615.7,0.00027397,3]
[367129047,1750665057577,-500.0,0.00027397,3]
[367129048,1750665057586,-490.0,0.00027397,3]
[367129049,1750665057595,-551.35212703,0.00027397,3]
[367129050,1750665057605,-852.0,0.00027397,3]
[367129051,1750665057615,-1016.47,0.00027397,3]
[367129052,1750665057624,-490.0,0.00027397,3]
[367129053,1750665057634,-461.11610354,0.00027397,3]
[367129054,1750665057644,-543.13,0.00027397,3]
[367129055,1750665057654,-966.13,0.00027397,3]
[367129056,1750665057664,-2112.61,0.00027397,3]
[367129057,1750665057674,-1260.84,0.00027397,3]
[367129058,1750665057683,-575.92,0.00027397,3]
[367129059,1750665057693,-490.0,0.00027397,3]
[367129060,1750665057703,-699.39,0.00027397,3]
[367129061,1750665057712,-926.89,0.00027397,3]
[367129062,1750665057721,-661.4,0.00027397,3]
[367129063,1750665057731,-490.0,0.00027397,3]
[367129064,1750665057741,-7307.56,0.00027397,3]
[367129065,1750665057751,-490.0,0.00027397,3]
[367129066,1750665057760,-1188.57,0.00027397,3]
[367129067,1750665057770,-1275.33,0.00027397,3]
[367129068,1750665057780,-490.0,0.00027397,3]
[367129069,1750665057789,-301.658076,0.00027397,4]
[367129070,1750665057799,-490.0,0.00027397,3]
[367129071,1750665057808,-490.0,0.00027397,3]
[367129072,1750665057818,-649.03,0.00027397,3]
[367129073,1750665057828,-1148.8,0.00027397,3]
[367129074,1750665057838,-490.0,0.00027397,3]
[367129075,1750665057848,-490.0,0.00027397,3]
[367129076,1750665057857,-490.0,0.00027397,3]
[367129077,1750665057867,-490.62662593,0.00027397,3]
[367129078,1750665057876,-1769.62,0.00027397,3]
[367129079,1750665057886,-490.0,0.00027397,3]
[367129080,1750665057896,-1684.74,0.00027397,3]
[367129081,1750665057905,-1245.46,0.00027397,3]
[367129082,1750665057915,-490.0,0.00027397,3]
[367129083,1750665057928,-490.0,0.00027397,3]
[367129084,1750665057937,-490.0,0.00027397,3]
[367129085,1750665057947,-490.0,0.00027397,3]
[367129086,1750665057957,-946.71,0.00027397,3]
[367129087,1750665057967,-2328.53,0.00027397,3]
[367129088,1750665057976,-1790.2,0.00027397,3]
[367129089,1750665057985,-490.0,0.00027397,3]
[367129090,1750665057995,-490.0,0.00027397,3]
[367129091,1750665058004,-490.0,0.00027397,3]
[367129092,1750665058013,-490.0,0.00027397,3]
[367129093,1750665058023,-490.0,0.00027397,3]
[367129094,1750665058032,-490.0,0.00027397,3]
[367129095,1750665058041,-490.0,0.00027397,3]
[367129096,1750665058051,-490.0,0.00027397,3]
[367129097,1750665058060,-490.0,0.00027397,3]
[367129098,1750665058069,-490.0,0.00027397,3]
[367129099,1750665058079,-490.0,0.00027397,3]
[367129100,1750665058094,-1416.9,0.00027397,3]
[367129101,1750665058104,-490.0,0.00027397,3]
[367129102,1750665058115,-490.0,0.00027397,3]
[367129103,1750665058126,-490.0,0.00027397,3]
[367129104,1750665058136,-569.78,0.00027397,3]
[367129105,1750665058146,-490.0,0.00027397,3]
[367129106,1750665058156,-490.0,0.00027397,3]
[367129107,1750665058166,-1584.55,0.00027397,3]
[367129108,1750665058175,-490.0,0.00027397,3]
[367129109,1750665058184,-490.0,0.00027397,3]
[367129110,1750665058195,-490.0,0.00027397,3]
[367129111,1750665058205,-490.0,0.00027397,3]
[367129112,1750665058216,-1146.51,0.00027397,3]
[367129113,1750665058225,-721.25,0.00027397,3]
[367129114,1750665058235,-490.0,0.00027397,3]
[367129115,1750665058245,-1328.97,0.00027397,3]
[367129116,1750665058255,-1180.0,0.00027397,3]
[367129117,1750665058265,-1878.33,0.00027397,3]
[367129118,1750665058274,-490.0,0.00027397,3]
[367129119,1750665058284,-490.0,0.00027397,3]
[367129120,1750665058294,-490.0,0.00027397,3]
[367129121,1750665058303,-490.0,0.00027397,3]
[367129122,1750665058313,-1168.59,0.00027397,3]
[367129123,1750665058323,-490.0,0.00027397,3]
[367129124,1750665058333,-1333.53,0.00027397,3]
[367129125,1750665058343,-1620.62,0.00027397,3]
[367129126,1750665058352,-627.07461194,0.00027397,3]
[367129127,1750665058362,-631.77,0.00027397,3]
[367129128,1750665058373,-1030.66,0.00027397,3]
[367129129,1750665058383,-490.0,0.00027397,3]
[367129130,1750665058392,-490.0,0.00027397,3]
[367129131,1750665058402,-490.0,0.00027397,3]
[367129132,1750665058412,-490.0,0.00027397,3]
[367129133,1750665058422,-490.46150417,0.00027397,3]
[367129134,1750665058432,-1543.7,0.00027397,3]
[367129135,1750665058442,-490.0,0.00027397,3]
[367129136,1750665058452,-490.92433581,0.00027397,3]
[367129137,1750665058461,-490.0,0.00027397,3]
[367129138,1750665058471,-490.0,0.00027397,3]
[367129139,1750665058481,-490.0,0.00027397,3]
[367129140,1750665058491,-490.0,0.00027397,3]
[367129141,1750665058501,-354.6142256,0.00027397,3]
[367129142,1750665058512,-218.03587518,0.00027397,3]
[367129143,1750665058522,-490.74537372,0.00027397,3]
[367129144,1750665058534,-490.0,0.00027397,3]
[367129145,1750665058544,-490.0,0.00027397,3]
[367129146,1750665058553,-811.77,0.00027397,3]
[367129147,1750665058563,-1156.18,0.00027397,3]
[367129148,1750665058572,-1152.47,0.00027397,3]
[367129149,1750665058582,-490.0,0.00027397,3]
[367129150,1750665058592,-490.0,0.00027397,3]
[367129151,1750665058601,-1328.16,0.00027397,3]
[367129152,1750665058611,-892.28,0.00027397,3]
[367129153,1750665058621,-490.0,0.00027397,3]
[367129154,1750665058631,-490.0,0.00027397,3]
[367129155,1750665058641,-926.55,0.00027397,3]
[367129156,1750665058651,-490.74719341,0.00027397,3]
[367129157,1750665058661,-490.0,0.00027397,3]
[367129158,1750665058671,-5128.86,0.00027397,3]
[367129159,1750665058680,-490.0,0.00027397,3]
[367129160,1750665058691,-490.0,0.00027397,3]
[367129161,1750665058700,-929.97,0.00027397,3]
[367129162,1750665058946,-895.24,0.00027397,3]
[367129163,1750665058956,-338.79393871,0.00027397,3]
[367129164,1750665058966,-490.0,0.00027397,3]
[367129165,1750665058976,-490.0,0.00027397,3]
[367129166,1750665058986,-514.94,0.00027397,3]
[367129167,1750665058996,-490.0,0.00027397,3]
[367129168,1750665059006,-647.41,0.00027397,3]
[367129169,1750665059015,-1059.11,0.00027397,3]
[367129170,1750665059025,-490.57589849,0.00027397,3]
[367129171,1750665059034,-532.855562,0.00027397,3]
[367129172,1750665059044,-3162.98,0.00027397,3]
[367129173,1750665059054,-543.56003654,0.00027397,3]
[367129174,1750665059064,-10436.94,0.00027397,3]
[367129175,1750665059074,-490.0,0.00027397,3]
[367129176,1750665059085,-490.0,0.00027397,3]
[367129177,1750665059094,-490.0,0.00027397,3]
[367129178,1750665059104,-490.0,0.00027397,3]
[367129179,1750665059114,-490.0,0.00027397,3]
[367129180,1750665059124,-1189.53,0.00027397,3]
[367129181,1750665059133,-623.01245954,0.00027397,3]
[367129182,1750665059143,-2195.9,0.00027397,3]
[367129183,1750665059153,-2202.71,0.00027397,3]
[367129184,1750665059162,-624.22,0.00027397,3]
[367129185,1750665059172,-1149.03,0.00027397,3]
[367129186,1750665059182,-490.0,0.00027397,3]
[367129187,1750665059192,-584.61398173,0.00027397,3]
[367129188,1750665059202,-490.0,0.00027397,3]
[367129189,1750665059211,-490.0,0.00027397,3]
[367129190,1750665059221,-4270.68,0.00027397,3]
[367129191,1750665059230,-534.25,0.00027397,3]
[367129192,1750665059240,-545.8,0.00027397,3]
[367129193,1750665059250,-490.0,0.00027397,3]
[367129194,1750665059260,-490.0,0.00027397,3]
[367129195,1750665059270,-493.6568795,0.00027397,3]
[367129196,1750665059280,-490.0,0.00027397,3]
[367129197,1750665059290,-550.51366414,0.00027397,3]
[367129198,1750665059299,-490.0,0.00027397,3]
[367129199,1750665059309,-490.0,0.00027397,3]
[367129200,1750665059319,-490.0,0.00027397,3]
[367129201,1750665059328,-1252.75,0.00027397,3]
[367129202,1750665059338,-490.0,0.00027397,3]
[367129203,1750665059348,-490.0,0.00027397,3]
[367129204,1750665059357,-490.0,0.00027397,3]
[367129205,1750665059367,-1146.08,0.00027397,3]
[367129206,1750665059377,-1122.82,0.00027397,3]
[367129207,1750665059387,-490.0,0.00027397,3]
[367129208,1750665059397,-490.0,0.00027397,3]
[367129209,1750665059406,-490.0,0.00027397,3]
[367129210,1750665059415,-2352.77,0.00027397,3]
[367129211,1750665059425,-490.0,0.00027397,3]
[367129212,1750665059434,-490.0,0.00027397,3]
[367129213,1750665059444,-623.98,0.00027397,3]
[367129214,1750665059454,-1981.72,0.00027397,3]
[367129215,1750665059464,-2769.06,0.00027397,3]
[367129216,1750665059473,-490.0,0.00027397,3]
[367129217,1750665059483,-490.0,0.00027397,3]
[367129218,1750665059493,-502.64,0.00027397,3]
[367129219,1750665059503,-490.0,0.00027397,3]
[367129220,1750665059513,-490.0,0.00027397,3]
[367129221,1750665059523,-490.0,0.00027397,3]
[367129222,1750665059533,-491.11895858,0.00027397,3]
[367129223,1750665059542,-490.0,0.00027397,3]
[367129224,1750665059551,-490.0,0.00027397,3]
[367129225,1750665059561,-490.0,0.00027397,3]
[367129226,1750665059571,-490.0,0.00027397,3]
[367129227,1750665059580,-500.0,0.00027397,3]
[367129228,1750665059590,-1210.66,0.00027397,3]
[367129229,1750665059600,-1247.42,0.00027397,3]
[367129230,1750665059610,-544.19,0.00027397,3]
[367129231,1750665059620,-490.0,0.00027397,3]
[367129232,1750665059630,-490.0,0.00027397,3]
[367129233,1750665059640,-707.04,0.00027397,3]
[367129234,1750665059650,-490.0,0.00027397,3]
[367129235,1750665059660,-411.6481574,0.00027397,3]
[367129236,1750665059671,-490.0,0.00027397,3]
[367129237,1750665059681,-1979.61,0.00027397,3]
[367129238,1750665059691,-1987.6,0.00027397,3]
[367129239,1750665059701,-1076.76,0.00027397,3]
[367129240,1750665059711,-10751.97,0.00027397,3]
[367129241,1750665059720,-490.0,0.00027397,3]
[367129242,1750665059730,-490.0,0.00027397,3]
[367129243,1750665059740,-3423.31,0.00027397,3]
[367129244,1750665059750,-2864.01,0.00027397,3]
[367129245,1750665059760,-490.0,0.00027397,3]
[367129246,1750665059770,-490.0,0.00027397,3]
[367129247,1750665059780,-490.0,0.00027397,3]
[367129248,1750665059790,-490.0,0.00027397,3]
[367129249,1750665059799,-490.0,0.00027397,3]
[367129250,1750665059809,-633.23,0.00027397,3]
[367129251,1750665059819,-490.0,0.00027397,3]
[367129252,1750665059829,-500.0,0.00027397,3]
[367129253,1750665059839,-490.0,0.00027397,3]
[367129254,1750665059848,-500.0,0.00027397,3]
[367129255,1750665059858,-490.0,0.00027397,3]
[367129256,1750665059867,-500.0,0.00027397,3]
[367129257,1750665059877,-500.0,0.00027397,3]
[367129258,1750665059887,-491.24867324,0.00027397,3]
[367129259,1750665059896,-500.0,0.00027397,3]
[367129260,1750665059906,-490.0,0.00027397,3]
[367129261,1750665059915,-500.0,0.00027397,3]
[367129262,1750665059928,-500.0,0.00027397,3]
[367129263,1750665059937,-500.0,0.00027397,3]
[367129264,1750665059947,-490.0,0.00027397,3]
[367129265,1750665059959,-500.0,0.00027397,3]
[367129266,1750665059968,-490.0,0.00027397,3]
[367129267,1750665059978,-1075.42,0.00027397,3]
[367129268,1750665059989,-490.0,0.00027397,3]
[367129269,1750665059998,-500.0,0.00027397,3]
[367129270,1750665060009,-2220.11,0.00027397,3]
[367129271,1750665060019,-490.0,0.00027397,3]
[367129272,1750665060028,-486.6088695,0.00027397,3]
[367129273,1750665060038,-490.95624951,0.00027397,3]
[367129274,1750665060048,-490.0,0.00027397,3]
[367129275,1750665060058,-490.0,0.00027397,3]
[367129276,1750665060068,-490.0,0.00027397,3]
[367129277,1750665060078,-490.0,0.00027397,3]
[367129278,1750665060088,-857.04,0.00027397,3]
[367129279,1750665060098,-769.91,0.00027397,3]
[367129280,1750665060108,-2716.97,0.00027397,3]
[367129281,1750665060119,-490.0,0.00027397,3]
[367129282,1750665060129,-1140.15,0.00027397,3]
[367129283,1750665060139,-490.0,0.00027397,3]
[367129284,1750665060149,-490.0,0.00027397,3]
[367129285,1750665060159,-523.71,0.00027397,3]
[367129286,1750665060169,-1223.01,0.00027397,3]
[367129287,1750665060179,-490.0,0.00027397,3]
[367129288,1750665060188,-490.0,0.00027397,3]
[367129289,1750665060199,-500.0,0.00027397,3]
[367129290,1750665060209,-500.0,0.00027397,3]
[367129291,1750665060219,-500.0,0.00027397,3]
[367129292,1750665060229,-500.0,0.00027397,3]
[367129293,1750665060239,-500.0,0.00027397,3]
[367129294,1750665060248,-500.0,0.00027397,3]
[367129295,1750665060257,-500.0,0.00027397,3]
[367129296,1750665060266,-500.0,0.00027397,3]
[367129297,1750665060276,-500.0,0.00027397,3]
[367129298,1750665060285,-1554.38,0.00027397,3]
[367129299,1750665060295,-500.0,0.00027397,3]
[367129300,1750665060304,-500.0,0.00027397,3]
[367129301,1750665060314,-490.0,0.00027397,3]
[367129302,1750665060323,-500.0,0.00027397,3]
[367129303,1750665060333,-632.61746242,0.00027397,3]
[367129304,1750665060343,-2084.11,0.00027397,3]
[367129305,1750665060352,-624.14,0.00027397,3]
[367129306,1750665060363,-490.0,0.00027397,3]
[367129307,1750665060374,-490.0,0.00027397,3]
[367129308,1750665060383,-1131.67,0.00027397,3]
[367129309,1750665060394,-490.0,0.00027397,3]
[367129310,1750665060405,-1755.29,0.00027397,3]
[367129311,1750665060415,-1845.26,0.00027397,3]
[367129312,1750665060424,-622.34135662,0.00027397,3]
[367129313,1750665060434,-271.1717347,0.00027397,3]
[367129314,1750665060445,-1112.49,0.00027397,3]
[367129315,1750665060455,-490.0,0.00027397,3]
[367129316,1750665060468,-493.65217078,0.00027397,3]
[367129317,1750665060479,-490.0,0.00027397,3]
[367129318,1750665060491,-490.0,0.00027397,3]
[367129319,1750665060500,-1617.72,0.00027397,3]
[367129320,1750665060509,-223.72199536,0.00027397,3]
[367129321,1750665060519,-1481.37,0.00027397,3]
[367129322,1750665060528,-490.52716607,0.00027397,3]
[367129323,1750665060537,-1167.6,0.00027397,3]
[367129324,1750665060547,-490.0,0.00027397,3]
[367129325,1750665060557,-1688.6,0.00027397,3]
[367129326,1750665060566,-986.26,0.00027397,3]
[367129327,1750665060576,-1394.31,0.00027397,3]
[367129328,1750665060586,-490.0,0.00027397,3]
[367129329,1750665060595,-490.0,0.00027397,3]
[367129330,1750665060606,-500.0,0.00027397,3]
[367129331,1750665060617,-500.0,0.00027397,3]
[367129332,1750665060627,-5812.93,0.00027397,3]
[367129333,1750665060636,-500.0,0.00027397,3]
[367129334,1750665060646,-500.0,0.00027397,3]
[367129335,1750665060655,-1040.55,0.00027397,3]
[367129336,1750665060664,-500.0,0.00027397,3]